bitfinex/quotes_SOLUSD_20241113
["timestamp","ask_amount","ask_price","bid_price","bid_amount"]
[1731497280617,0.2,207.16,207.1,4.1041]
[1731497280946,0.2,207.16,207.12,20.0]
[1731497281127,0.2,207.12,207.1,1.6899]
[1731497281314,0.1,207.12,207.1,1.6899]
[1731497281516,0.1,207.18,207.1,4.1041]
[1731497281818,0.1,207.18,207.12,20.0]
[1731497282137,0.1,207.2,207.13,4.1035]
[1731497282518,0.1,207.2,207.15,20.0]
[1731497282718,0.1,207.19,207.15,20.0]
[1731497283145,0.1,207.19,207.13,4.1035]
[1731497283336,0.1,207.14,207.13,1.6896]
[1731497283542,0.22549,207.14,207.13,1.6896]
[1731497283747,0.2,207.12,207.09,2.1668093]
[1731497286822,0.1,207.14,207.09,4.5812093]
[1731497287771,0.2,207.16,207.09,4.5812093]
[1731497288330,0.1,207.19,207.11,20.0]
[1731497288530,0.1,207.18,207.13,20.0]
[1731497288830,0.1,207.16,207.13,20.0]
[1731497289027,0.1,207.16,207.1,20.0]
[1731497289624,0.1,207.15,207.1,20.0]
[1731497290341,0.1,207.17,207.12,20.0]
[1731497290548,0.1,207.17,207.12,24.1038]
[1731497290742,0.1,207.18,207.12,24.1038]
[1731497290944,0.1,207.19,207.12,24.1038]
[1731497291125,0.1,207.2,207.12,24.1038]
[1731497291126,0.1,207.2,207.13,23.776884]
[1731497291334,0.1,207.2,207.14,20.0]
[1731497292765,0.2,207.22,207.14,20.0]
[1731497292933,0.1,207.26,207.19,20.0]
[1731497293243,0.1,207.26,207.2,23.776884]
[1731497293553,0.1,207.29,207.21,20.0]
[1731497293845,0.1,207.29,207.23,20.0]
[1731497294052,0.2,207.31,207.25,20.0]
[1731497294233,0.2,207.29,207.25,20.0]
[1731497294750,0.2,207.29,207.23,20.0]
[1731497294953,0.2,207.29,207.23,24.1015]
[1731497295330,0.1,207.26,207.23,4.1015]
[1731497295554,0.1,207.25,207.23,4.1015]
[1731497295935,0.1,207.27,207.23,4.1015]
[1731497296454,0.1,207.25,207.23,4.1015]
[1731497296657,0.1,207.24,207.23,1.6888]
[1731497296858,0.1,207.19,207.14,1.6896]
[1731497297330,0.1,207.18,207.14,1.6896]
[1731497297728,0.1,207.15,207.14,1.6896]
[1731497299165,0.1,207.15,207.1,1.6899]
[1731497299738,0.1,207.16,207.1,1.6899]
[1731497300065,0.1,207.17,207.1,1.6899]
[1731497301034,0.1,207.23,207.15,23.776884]
[1731497301241,0.1,207.23,207.16,24.1029]
[1731497301753,0.1,207.19,207.16,24.1029]
[1731497301958,0.2,207.23,207.16,24.1029]
[1731497302150,0.1,207.23,207.16,24.1029]
[1731497302459,0.1,207.19,207.16,4.1029]
[1731497303356,0.1,207.19,207.16,3.6202]
[1731497303860,0.1,207.2,207.16,23.6202]
[1731497304048,0.1,207.23,207.16,23.6202]
[1731497304649,0.1,207.21,207.16,23.6202]
[1731497305169,0.1,207.21,207.16,24.1029]
[1731497306661,0.12549,207.27,207.16,21.6894]
[1731497307067,0.22549,207.27,207.16,1.6894]
[1731497307363,0.12549,207.25,207.16,1.6894]
[1731497308341,22.53099702,207.25,207.16,1.2067]
[1731497308545,0.1,207.24,207.15,2000.4827]
[1731497308745,0.12549,207.23,207.15,2000.0]
[1731497308964,0.1,207.22,207.15,2000.0]
[1731497309442,0.12549,207.2,207.15,2000.0]
[1731497309864,22.53099702,207.18,207.15,2000.0]
[1731497310056,0.22549,207.16,207.15,2000.0]
[1731497310967,46.30788102,207.16,207.15,1944.7706]
[1731497311268,58.28108102,207.16,207.15,1944.7706]
[1731497311769,63.10818102,207.16,207.15,1797.72489336]
[1731497315168,83.10818102,207.16,207.15,1797.72489336]
[1731497315371,17.02579,207.16,207.15,1797.72489336]
[1731497315674,15.3238,207.24,207.15,1798.20759336]
[1731497316049,10.4985,207.24,207.15,1799.41439336]
[1731497316267,4.8247,207.27,207.15,1799.41439336]
[1731497316650,0.12549,207.26,207.15,1799.41439336]
[1731497317381,4.8247,207.27,207.15,1799.41439336]
[1731497317680,10.2356,207.29,207.17,25.0669]
[1731497317977,15.0598,207.29,207.18,20.0]
[1731497319071,0.12549,207.28,207.19,1.6892]
[1731497320075,22.50550702,207.31,207.3,1782.53960336]
[1731497320553,0.2,207.31,207.3,1782.53960336]
[1731497320759,46.28239102,207.33,207.3,1782.53960336]
[1731497320959,4.8236,207.31,207.3,1782.53960336]
[1731497321163,4.9236,207.31,207.3,1782.53960336]
[1731497321756,27.32910702,207.31,207.3,1782.53960336]
[1731497322157,4.8236,207.31,207.3,1782.53960336]
[1731497322370,4.94909,207.31,207.3,1782.53960336]
[1731497322783,5.04909,207.31,207.3,1782.53960336]
[1731497323156,4.94909,207.31,207.3,1782.53960336]
[1731497323372,22.30550702,207.34,207.3,1782.53960336]
[1731497323574,24.8232,207.33,207.3,1782.53960336]
[1731497324166,0.12549,207.32,207.3,1782.53960336]
[1731497324669,4.8229,207.35,207.3,1782.53960336]
[1731497324969,0.12549,207.34,207.3,1782.53960336]
[1731497325660,0.12549,207.33,207.3,1782.53960336]
[1731497326167,10.7565,207.4,207.3,1782.53960336]
[1731497326372,4.8218,207.4,207.3,1783.02190336]
[1731497326668,4.8218,207.4,207.3,1784.22780336]
[1731497326874,7.36099932,207.44,207.31,20.0]
[1731497327082,7.46099932,207.44,207.31,20.0]
[1731497327277,0.12549,207.43,207.31,20.0]
[1731497327488,7.46099932,207.44,207.31,20.0]
[1731497327774,22.43099702,207.43,207.32,1.6881]
[1731497328488,0.12549,207.43,207.32,1.6881]
[1731497329082,0.12549,207.41,207.32,1.6881]
[1731497329777,43.776884,207.52,207.5,1677.28248148]
[1731497329979,88.38789804,207.51,207.5,1677.28248148]
[1731497330163,42.30550702,207.51,207.5,1655.8015579]
[1731497330478,42.30550702,207.51,207.5,1649.0665579]
[1731497330479,22.30550702,207.51,207.5,1649.0665579]
[1731497331679,46.08239102,207.51,207.5,1624.8871579]
[1731497331860,46.20788102,207.51,207.5,1624.8871579]
[1731497332061,66.20788102,207.51,207.5,1624.8871579]
[1731497332463,20.0,207.51,207.5,1624.8871579]
[1731497332666,42.30550702,207.51,207.5,1624.8871579]
[1731497333791,22.30550702,207.51,207.5,1624.8871579]
[1731497333966,4.8186,207.53,207.5,1624.8871579]
[1731497334371,27.12310702,207.57,207.5,1624.8871579]
[1731497334786,4.8176,207.57,207.5,1624.8871579]
[1731497335690,27.12310702,207.57,207.5,1624.8871579]
[1731497335907,22.30550702,207.52,207.5,1624.8871579]
[1731497336060,0.12549,207.51,207.5,1624.8871579]
[1731497337371,4.94449,207.51,207.5,1624.8871579]
[1731497338085,22.30550702,207.55,207.5,1624.8871579]
[1731497338287,22.30550702,207.51,207.5,1624.8871579]
[1731497338788,42.43099702,207.51,207.5,1624.8871579]
[1731497338997,22.30550702,207.6,207.4,25.0316]
[1731497338998,24.47282462,208.01,208.0,133.33020802]
[1731497339290,4.822,207.62,207.4,20.0096]
[1731497339497,22.30550702,207.55,207.4,20.4917]
[1731497339675,22.30550702,207.56,207.4,21.6971]
[1731497340193,22.30550702,207.57,207.41,0.1]
[1731497340377,22.30550702,207.56,207.41,0.1]
[1731497340891,16.8633,207.55,207.41,0.2]
[1731497341096,20.0,207.54,207.41,0.2]
[1731497341476,20.0,207.54,207.43,0.1]
[1731497341681,16.8633,207.55,207.44,0.1]
[1731497342483,0.12549,207.54,207.41,0.1]
[1731497342698,0.12549,207.54,207.4,21.215]
[1731497342699,0.12549,207.52,207.4,21.215]
[1731497342879,22.43099702,207.52,207.4,20.0096]
[1731497343081,22.43099702,207.5,207.4,20.0096]
[1731497343477,0.12549,207.48,207.35,25.2842]
[1731497344294,0.12549,207.48,207.36,0.1]
[1731497344676,0.12549,207.46,207.37,0.9644]
[1731497345201,4.8199,207.47,207.38,0.1]
[1731497345495,4.8199,207.47,207.39,0.1]
[1731497345897,0.12549,207.46,207.39,0.1]
[1731497346101,4.8199,207.47,207.4,0.1]
[1731497346304,4.8199,207.47,207.4,1.0643]
[1731497346503,0.12549,207.46,207.38,0.9643]
[1731497346796,0.12549,207.46,207.37,2.4111]
[1731497346997,0.12549,207.46,207.35,25.2842]
[1731497348407,0.12549,207.44,207.35,25.2842]
[1731497349997,4.8204,207.45,207.38,0.2]
[1731497350384,0.12549,207.46,207.39,0.9643]
[1731497351401,4.8199,207.47,207.4,0.1]
[1731497351901,0.12549,207.48,207.43,0.1]
[1731497352107,0.12549,207.48,207.45,0.2]
[1731497352287,4.8171,207.59,207.46,32.2864]
[1731497352488,16.86,207.59,207.46,32.2864]
[1731497353595,12.0429,207.59,207.46,33.2504]
[1731497353996,4.8169,207.6,207.49,0.1]
[1731497354805,4.8169,207.6,207.48,0.1]
[1731497355013,16.8592,207.6,207.48,0.1]
[1731497355222,0.12549,207.59,207.46,35.7605]
[1731497355506,0.12549,207.57,207.47,0.1]
[1731497356009,4.8174,207.58,207.5,12.2056]
[1731497356313,4.8153,207.67,207.54,0.2]
[1731497356881,0.12549,207.66,207.54,0.2]
[1731497357409,16.8547,207.66,207.56,0.1]
[1731497357588,4.8155,207.66,207.58,0.1]
[1731497358210,4.8155,207.66,207.57,30.449]
[1731497358620,0.12549,207.65,207.57,30.449]
[1731497359302,4.8148,207.69,207.59,0.1]
[1731497359689,0.12549,207.68,207.59,0.1]
[1731497360214,4.8148,207.69,207.6,12.854]
[1731497360511,0.12549,207.68,207.6,12.854]
[1731497360807,0.12549,207.66,207.6,12.854]
[1731497361394,4.8139,207.73,207.61,0.2]
[1731497362394,0.12549,207.7,207.61,1.1633]
[1731497363420,16.97419,207.73,207.6,15.2624]
[1731497363721,16.97419,207.73,207.6,12.854]
[1731497364020,16.97419,207.73,207.62,0.2]
[1731497365516,16.97419,207.73,207.62,0.1]
[1731497365805,16.97419,207.73,207.62,0.2]
[1731497366018,16.97419,207.73,207.6,15.4624]
[1731497366193,16.97419,207.73,207.62,0.2]
[1731497366512,16.97419,207.73,207.6,16.4257]
[1731497366818,16.97419,207.73,207.62,0.2]
[1731497367393,16.97419,207.73,207.61,0.9633]
[1731497367619,16.97419,207.73,207.6,12.854]
[1731497368910,16.8487,207.73,207.6,13.8173]
[1731497369309,12.0348,207.73,207.62,0.2]
[1731497369691,4.8134,207.75,207.62,0.2]
[1731497370115,0.12549,207.74,207.62,0.2]
[1731497370336,0.12549,207.74,207.6,16.3257]
[1731497370491,0.12549,207.74,207.6,12.854]
[1731497370699,23.902374,207.74,207.6,12.854]
[1731497371511,23.902374,207.72,207.6,12.854]
[1731497373694,23.902374,207.7,207.6,12.854]
[1731497375116,20.0,207.67,207.57,30.449]
[1731497375317,23.902374,207.66,207.57,30.449]
[1731497376304,0.12549,207.64,207.57,30.449]
[1731497377508,0.12549,207.62,207.57,30.449]
[1731497379223,0.12549,207.64,207.57,30.449]
[1731497379525,4.94149,207.64,207.57,30.449]
[1731497380517,16.98149,207.64,207.57,30.449]
[1731497381615,4.94149,207.64,207.57,30.449]
[1731497383012,16.98149,207.64,207.57,30.449]
[1731497386224,4.94149,207.64,207.57,30.449]
[1731497386605,4.816,207.64,207.57,30.449]
[1731497386919,12.038,207.68,207.57,32.0942]
[1731497387296,0.12549,207.67,207.57,30.449]
[1731497387916,23.902374,207.67,207.57,30.449]
[1731497388324,0.12549,207.67,207.57,30.449]
[1731497388824,16.8544,207.66,207.57,30.449]
[1731497389008,0.12549,207.65,207.57,30.449]
[1731497389324,23.902374,207.65,207.57,30.449]
[1731497391204,0.12549,207.63,207.57,30.449]
[1731497392626,0.12549,207.61,207.57,30.449]
[1731497393621,0.12549,207.63,207.57,30.449]
[1731497393831,0.12549,207.61,207.57,30.449]
[1731497395209,16.98229,207.63,207.57,30.449]
[1731497396123,0.12549,207.61,207.52,30.6793]
[1731497397024,20.12549,207.61,207.52,30.6793]
[1731497397222,16.8592,207.6,207.52,30.6793]
[1731497397407,0.12549,207.59,207.52,30.6793]
[1731497398329,0.12549,207.57,207.52,30.6793]
[1731497399129,14.48639,207.58,207.52,30.6793]
[1731497399435,12.0435,207.58,207.52,30.6793]
[1731497400612,4.8169,207.6,207.52,30.6793]
[1731497400808,4.8169,207.6,207.52,30.7793]
[1731497401007,4.8169,207.6,207.52,30.8793]
[1731497401227,0.12549,207.59,207.52,30.7793]
[1731497401432,0.12549,207.59,207.52,30.6793]
[1731497402520,16.8592,207.6,207.52,30.6793]
[1731497402521,0.12549,207.57,207.52,30.6793]
[1731497404616,0.12549,207.55,207.52,30.6793]
[1731497406152,4.8178,207.56,207.52,30.6793]
[1731497406441,12.043,207.59,207.52,30.6793]
[1731497407311,0.12549,207.58,207.52,30.6793]
[1731497408635,4.8157,207.65,207.54,0.2]
[1731497408837,4.8157,207.65,207.58,0.1]
[1731497409142,4.8157,207.65,207.61,13.0913]
[1731497409813,4.8157,207.65,207.62,0.1]
[1731497410218,16.97629,207.71,207.62,0.1]
[1731497410435,4.8144,207.71,207.64,0.1]
[1731497410626,2.60072416,207.73,207.64,0.1]
[1731497410831,15.1875,207.77,207.64,0.1]
[1731497411331,0.12549,207.76,207.64,0.1]
[1731497411717,20.12549,207.76,207.64,0.1]
[1731497412412,20.12549,207.76,207.65,0.1]
[1731497412735,4.8134,207.75,207.65,0.1]
[1731497413433,0.12549,207.74,207.65,0.1]
[1731497414744,0.12549,207.72,207.65,0.1]
[1731497415938,20.12549,207.76,207.62,0.1]
[1731497416145,20.0,207.74,207.64,0.1]
[1731497416438,0.12549,207.73,207.62,0.1]
[1731497416842,40.9143,207.75,207.64,0.1]
[1731497417239,16.847,207.75,207.68,30.8681]
[1731497417425,17.70292102,207.77,207.71,0.1]
[1731497417622,20.0007,207.77,207.71,0.1]
[1731497418220,20.0007,207.77,207.73,0.1]
[1731497418427,20.0007,207.77,207.75,0.1]
[1731497418927,15.1875,207.77,207.75,0.1]
[1731497419125,15.1875,207.77,207.76,30.8595]
[1731497420145,15.1875,207.77,207.76,30.9595]
[1731497420443,15.1875,207.77,207.76,30.8595]
[1731497420621,15.31299,207.77,207.76,30.8595]
[1731497421137,4.93869,207.76,207.71,31.0742]
[1731497421442,16.97179,207.76,207.71,31.0742]
[1731497421641,0.12549,207.74,207.66,31.0742]
[1731497421851,20.0,207.73,207.6,31.4416]
[1731497422032,26.09704013,207.73,207.6,31.5416]
[1731497422230,20.0,207.73,207.6,31.5416]
[1731497422536,0.12549,207.7,207.63,0.1]
[1731497422919,4.8141,207.72,207.68,0.1]
[1731497423125,4.8132,207.76,207.7,13.0167]
[1731497423637,0.12549,207.75,207.71,32.0659]
[1731497424347,4.93869,207.76,207.72,0.1]
[1731497424552,4.8132,207.76,207.72,0.1]
[1731497425125,4.8132,207.76,207.74,0.1]
[1731497426948,15.1875,207.77,207.76,0.1]
[1731497430624,4.93869,207.76,207.71,32.0659]
[1731497431956,16.97179,207.76,207.67,31.716]
[1731497432246,16.97179,207.76,207.67,0.1]
[1731497432247,47.00954013,207.76,207.67,0.1]
[1731497432549,0.12549,207.75,207.65,0.1]
[1731497432864,20.12549,207.75,207.64,12.6185]
[1731497433035,0.12549,207.75,207.66,0.1]
[1731497433233,4.8132,207.76,207.69,0.1]
[1731497433435,4.8132,207.76,207.68,0.1]
[1731497433436,4.8132,207.76,207.71,0.1]
[1731497434027,0.12549,207.75,207.69,0.1]
[1731497434236,4.8137,207.74,207.71,0.1]
[1731497435449,4.8137,207.74,207.69,0.1]
[1731497436432,4.8141,207.72,207.67,0.1]
[1731497436747,4.8132,207.76,207.72,0.1]
[1731497444456,0.12549,207.75,207.66,0.1]
[1731497445954,4.8132,207.76,207.72,0.1]
[1731497446133,4.8132,207.76,207.72,30.5283]
[1731497446740,4.8132,207.76,207.74,0.1]
[1731497452158,16.8463,207.76,207.72,30.5283]
[1731497452660,16.8463,207.76,207.72,30.4283]
[1731497454261,0.12549,207.75,207.68,0.1]
[1731497455343,0.12549,207.73,207.68,0.1]
[1731497457541,0.12549,207.71,207.68,0.1]
[1731497457761,0.12549,207.71,207.66,32.3379]
[1731497459963,4.8146,207.7,207.67,0.1]
[1731497460349,4.8146,207.7,207.66,32.3379]
[1731497460558,4.8134,207.75,207.71,0.1]
[1731497461664,12.0335,207.76,207.71,0.1]
[1731497461665,16.8467,207.76,207.71,0.1]
[1731497462142,15.1875,207.77,207.76,0.1]
[1731497462457,20.0005,207.77,207.76,0.1]
[1731497462942,15.1875,207.77,207.76,0.1]
[1731497463144,12.6475,207.97,207.86,0.1]
[1731497463364,2.54741606,207.94,207.88,0.1]
[1731497463682,16.8301,207.96,207.84,0.2]
[1731497463842,0.12549,207.95,207.84,0.1]
[1731497464161,0.12549,207.95,207.82,0.1]
[1731497464362,0.12549,207.95,207.78,0.1]
[1731497464547,14.44,207.91,207.7,13.1849]
[1731497464865,36.580084,207.85,207.7,13.1849]
[1731497465068,23.776884,207.81,207.69,32.9889]
[1731497465241,6.09704013,207.84,207.73,0.1]
[1731497465555,6.09704013,207.84,207.65,13.2433]
[1731497465556,23.776884,207.84,207.71,0.1]
[1731497465959,23.776884,207.82,207.71,0.1]
[1731497466674,23.776884,207.82,207.69,0.1]
[1731497466857,23.776884,207.82,207.67,0.1]
[1731497467164,23.776884,207.8,207.65,13.4433]
[1731497467357,23.776884,207.78,207.65,13.4433]
[1731497467759,145.3987,207.83,207.62,0.1]
[1731497467760,23.776884,207.76,207.62,0.1]
[1731497467949,23.776884,207.76,207.6,12.1248]
[1731497467950,64.697184,207.72,207.6,12.1248]
[1731497468149,40.9203,207.72,207.61,0.1]
[1731497468451,40.9203,207.72,207.64,0.1]
[1731497468959,20.0,207.71,207.62,0.1]
[1731497469166,20.0,207.71,207.6,12.2248]
[1731497469368,20.0,207.71,207.63,0.1]
[1731497471865,0.12549,207.86,207.78,0.1]
[1731497472042,20.12549,207.86,207.78,0.1]
[1731497472249,2.51221227,207.91,207.72,13.2677]
[1731497472250,0.12549,207.84,207.76,0.1]
[1731497472569,0.12549,207.84,207.77,0.1]
[1731497472772,36.839,207.85,207.79,0.2]
[1731497472950,36.839,207.85,207.82,0.1]
[1731497472951,4.8111,207.85,207.82,0.1]
[1731497473267,4.8102,207.89,207.84,0.2]
[1731497473566,4.8102,207.89,207.82,0.2]
[1731497473866,0.12549,207.88,207.82,0.1]
[1731497474051,0.12549,207.88,207.8,0.2]
[1731497474251,0.12549,207.86,207.8,0.1]
[1731497474646,0.12549,207.86,207.81,0.1]
[1731497475069,0.12549,207.86,207.8,0.1]
[1731497475386,4.8111,207.85,207.8,0.1]
[1731497475669,0.12549,207.84,207.79,0.1]
[1731497476170,0.12549,207.84,207.81,0.2]
[1731497476469,4.93639,207.86,207.81,0.2]
[1731497476851,4.93639,207.86,207.81,0.1]
[1731497477075,4.8109,207.86,207.85,0.1]
[1731497477649,4.93639,207.86,207.85,0.1]
[1731497477863,0.12549,207.85,207.84,0.1]
[1731497478147,0.12549,207.85,207.83,0.1]
[1731497478653,0.12549,207.91,207.83,0.1]
[1731497478867,20.0,207.9,207.85,0.1]
[1731497479166,0.12549,207.89,207.83,0.2]
[1731497479866,0.12549,207.89,207.83,0.1]
[1731497480085,0.12549,207.87,207.81,0.1]
[1731497480261,0.12549,207.87,207.82,0.1]
[1731497480463,0.12549,207.87,207.79,0.2]
[1731497480464,20.12549,207.87,207.79,0.2]
[1731497481252,20.12549,207.87,207.77,0.1]
[1731497481460,20.12549,207.87,207.75,0.1]
[1731497481770,20.12549,207.85,207.77,0.1]
[1731497481965,0.12549,207.83,207.77,0.1]
[1731497482159,20.12549,207.83,207.77,0.1]
[1731497482357,20.12549,207.83,207.77,0.2]
[1731497482558,0.12549,207.83,207.81,0.1]
[1731497483381,0.12549,207.83,207.79,0.1]
[1731497483582,0.12549,207.83,207.71,30.0975]
[1731497483583,0.12549,207.83,207.77,0.1]
[1731497483871,0.12549,207.83,207.72,13.3677]
[1731497483872,20.12549,207.83,207.72,13.3677]
[1731497484171,0.12549,207.81,207.72,13.3677]
[1731497484556,0.12549,207.81,207.72,13.2677]
[1731497484867,0.12549,207.79,207.72,13.2677]
[1731497485068,23.902374,207.75,207.66,0.1]
[1731497485247,0.12549,207.73,207.66,0.1]
[1731497485572,23.902374,207.73,207.65,13.2556]
[1731497485749,0.12549,207.71,207.65,0.2]
[1731497485945,0.12549,207.71,207.67,0.1]
[1731497486165,4.8146,207.7,207.67,0.1]
[1731497486374,0.12549,207.69,207.67,0.1]
[1731497487476,0.12549,207.7,207.65,0.1]
[1731497487976,20.12549,207.7,207.66,0.1]
[1731497488161,0.12549,207.7,207.66,0.1]
[1731497488883,0.12549,207.68,207.66,0.1]
[1731497492151,36.97659,207.7,207.62,0.1]
[1731497492356,0.12549,207.68,207.65,0.1]
[1731497493373,0.12549,207.69,207.65,0.2]
[1731497493770,0.12549,207.69,207.63,0.1]
[1731497493974,20.12549,207.69,207.64,0.2]
[1731497494455,4.8151,207.68,207.64,0.2]
[1731497494974,4.8151,207.68,207.67,0.1]
[1731497495170,4.94059,207.68,207.67,0.1]
[1731497495583,0.12549,207.67,207.63,0.1]
[1731497495785,0.12549,207.67,207.65,0.1]
[1731497496263,0.12549,207.67,207.65,0.2]
[1731497496463,4.8155,207.66,207.65,0.1]
[1731497496772,4.8155,207.66,207.65,0.2]
[1731497497074,20.0,207.73,207.69,0.1]
[1731497497274,4.8134,207.75,207.74,0.2]
[1731497498371,16.843,207.8,207.74,0.2]
[1731497498579,20.0,207.79,207.74,0.2]
[1731497498772,20.0,207.79,207.72,0.1]
[1731497499077,20.0,207.79,207.71,44.7226]
[1731497499078,0.12549,207.78,207.71,44.7226]
[1731497499277,0.12549,207.78,207.68,0.1]
[1731497499478,23.902374,207.78,207.68,0.1]
[1731497499774,0.12549,207.76,207.68,0.1]
[1731497500484,20.12549,207.74,207.68,0.1]
[1731497501477,0.12549,207.72,207.68,0.1]
[1731497501677,20.12549,207.72,207.68,0.1]
[1731497502787,20.12549,207.72,207.68,0.2]
[1731497502963,20.12549,207.72,207.66,12.528]
[1731497503283,20.12549,207.72,207.67,0.2]
[1731497503492,20.12549,207.72,207.67,0.1]
[1731497503662,0.12549,207.7,207.66,12.528]
[1731497504181,0.12549,207.7,207.61,0.1]
[1731497504359,0.12549,207.7,207.63,0.1]
[1731497504561,0.12549,207.68,207.6,0.2]
[1731497505470,0.12549,207.68,207.61,0.1]
[1731497505665,0.12549,207.68,207.6,0.1]
[1731497505869,16.8536,207.67,207.64,0.1]
[1731497506077,16.8536,207.67,207.64,0.2]
[1731497506564,4.8153,207.67,207.66,0.1]
[1731497506764,4.8153,207.67,207.66,0.2]
[1731497507164,4.8146,207.7,207.69,0.1]
[1731497507786,4.8146,207.7,207.67,0.1]
[1731497507974,0.12549,207.74,207.67,0.1]
[1731497508481,20.12549,207.74,207.67,0.1]
[1731497510187,20.12549,207.72,207.67,0.1]
[1731497511291,0.12549,207.7,207.67,0.1]
[1731497512185,4.8148,207.69,207.67,0.1]
[1731497512583,0.12549,207.68,207.65,0.1]
[1731497512792,4.8148,207.69,207.68,0.1]
[1731497513167,24.0592,207.82,207.76,0.1]
[1731497513500,16.8426,207.81,207.76,0.1]
[1731497513798,0.12549,207.8,207.76,0.1]
[1731497514500,0.12549,207.78,207.76,0.1]
[1731497514988,4.8125,207.79,207.76,0.1]
[1731497515191,4.8125,207.79,207.76,0.2]
[1731497516493,0.12549,207.78,207.76,0.2]
[1731497517295,0.12549,207.79,207.76,0.1]
[1731497517485,0.12549,207.77,207.74,0.2]
[1731497517687,0.12549,207.77,207.72,0.2]
[1731497517883,20.12549,207.77,207.66,12.2766]
[1731497519188,0.12549,207.75,207.66,12.2766]
[1731497519391,20.12549,207.75,207.66,12.2766]
[1731497520305,0.12549,207.73,207.66,12.2766]
[1731497520484,20.12549,207.73,207.66,12.2766]
[1731497520681,20.12549,207.73,207.64,30.9153]
[1731497520881,0.12549,207.71,207.64,30.9153]
[1731497521084,20.12549,207.71,207.61,12.3961]
[1731497521695,0.12549,207.69,207.61,12.3961]
[1731497521881,20.12549,207.69,207.61,12.3961]
[1731497522482,0.12549,207.67,207.61,12.3961]
[1731497523895,20.12549,207.67,207.59,30.9864]
[1731497524801,4.8155,207.66,207.59,30.9864]
[1731497524977,0.12549,207.65,207.59,30.9864]
[1731497525578,20.12549,207.65,207.59,30.9864]
[1731497526588,0.12549,207.63,207.59,30.9864]
[1731497526779,20.12549,207.63,207.56,12.8591]
[1731497527996,4.8164,207.62,207.56,12.8591]
[1731497528296,24.075,207.69,207.56,12.8591]
[1731497528297,4.8153,207.67,207.57,23.776884]
[1731497529097,4.8153,207.67,207.56,17.9178]
[1731497529098,0.12549,207.66,207.56,11.3591]
[1731497529792,20.12549,207.66,207.56,11.3591]
[1731497530590,20.12549,207.64,207.56,11.3591]
[1731497532186,0.12549,207.62,207.56,11.3591]
[1731497533483,12.0394,207.65,207.56,11.3591]
[1731497533484,4.8148,207.69,207.57,23.776884]
[1731497533697,16.852,207.69,207.57,23.776884]
[1731497534309,0.12549,207.68,207.56,14.9725]
[1731497535012,20.12549,207.68,207.56,14.9725]
[1731497535193,20.12549,207.68,207.56,16.4178]
[1731497536293,0.12549,207.66,207.56,16.4178]
[1731497536996,12.0351,207.73,207.59,23.776884]
[1731497537201,0.12549,207.72,207.59,23.776884]
[1731497538085,0.12549,207.7,207.59,28.834784]
[1731497538691,0.12549,207.7,207.59,27.389684]
[1731497538897,0.12549,207.7,207.59,28.834784]
[1731497539220,0.12549,207.7,207.59,3.6128]